[Event "CCT Julius Baer-D3 2024"]
[Site "Online"]
[Date "2024.09.27"]
[Round "1.5"]
[White "Yilmaz, Mustafa"]
[Black "Makarian, Rudik"]
[Result "1/2-1/2"]
[ECO "D35"]
[WhiteElo "2587"]
[BlackElo "2550"]
[Annotator "TA"]
[PlyCount "87"]
[EventDate "2024.09.25"]
[EventType "swiss"]
[EventCountry "NET"]
[SourceTitle "playchess.com"]
[Source "ChessBase"]
[SourceQuality "1"]
[TimeControl "600+2"]

{[%evp 18,87,28,25,29,26,22,23,25,24,31,18,37,18,17,0,0,0,0,0,0,0,0,0,0,0,0,0,0,0,0,0,0,0,0,0,0,0,0,-210,0,0,0,0,0,0,0,-34,0,-15,-8,-10,0,-147,-153,-134,-110,-147,-160,-260,-256,-219,0,0,0,0,0,0,0,0,0,0]} 1. c4 {[%emt 0:00:04]} e6 {[%emt 0:02:35]} 2. Nc3 {[%emt 0:00:04]} d5 {[%emt 0:00:02]} 3. d4 {[%emt 0:00:03]} Nf6 {[%emt 0:00:03]} 4. cxd5 {[%emt 0:00:02]} exd5 {[%emt 0:00:02]} 5. Bg5 {[%emt 0:00:04]} c6 {[%emt 0:00:02]} 6. e3 {[%emt 0:00:02]} Bf5 {[%emt 0:00:03]} 7. Qf3 {[%emt 0:00:11]} Bg6 {[%emt 0:00:03]} 8. Bxf6 {[%emt 0:00:03]} Qxf6 {[%emt 0:00:02]} 9. Qxf6 {[%emt 0:00:04]} gxf6 {[%emt 0:00:02]} 10. h4 {[%emt 0:00:07]} h5 {[%emt 0:00:03]} 11. Kd2 {[%emt 0:00:05]} Nd7 {[%emt 0:00:04]} 12. Nh3 {[%emt 0:00:19]} Bd6 {[%emt 0:00:04] White has an edge.} 13. Bd3 {[%emt 0:00:11]} a5 {[%emt 0:00:12]} 14. g3 {[%emt 0:00:14]} Ke7 {[%emt 0:00:05]} 15. Nf4 {[%emt 0:00:14]} Bxf4 {[%emt 0:00:05]} 16. gxf4 {[%emt 0:00:11]} Bxd3 {[%emt 0:00:03]} 17. Kxd3 {[%emt 0:00:04]} Nb6 {[%emt 0:00:05]} 18. Rag1 {[%emt 0:00:22]} Nc4 {[%emt 0:00:14]} 19. b3 {[%emt 0:00:05]} Nd6 {[%emt 0:00:02]} 20. f3 {[%emt 0:00:06][%cal Bf2f3,Bf3e4,Be4e5][%mdl 32]} Rag8 {[%emt 0:00:04]} 21. e4 {[%emt 0:00:13]} dxe4+ {[%emt 0:00:02]} 22. fxe4 {[%emt 0:00:03]} Rg4 {[%emt 0:00:03]} 23. Rxg4 {[%emt 0:01:53]} hxg4 $11 {[%emt 0:00:02][%cal Bh5g4,Bg4g3,Bg3g2][%mdl 4128] Endgame. KRN-KRN} 24. h5 {[%emt 0:00:24]} g3 {[%emt 0:00:33]} 25. Ne2 {[%emt 0:00:05]} g2 {[%emt 0:00:04]} 26. Rh2 {[%emt 0:00:04]} f5 {[%emt 0:00:52]} 27. e5 {[%emt 0:00:03]} (27. Rxg2 $2 fxe4+ 28. Kd2 Rxh5 $19) 27... Ne4 {[%emt 0:00:05]} 28. Ke3 $2 {[%emt 0:00:03] [#]} (28. Ng1 $11 {and White has nothing to worry.}) 28... Ng3 $2 {[%emt 0:00:41]} 29. Rxg2 {[%emt 0:00:38]} (29. Nxg3 $2 g1=Q+ (29... g1=R 30. Nxf5+ Ke6 31. Nd6 $11) 30. Kf3 Qxh2 $19) 29... Nxe2 {[%emt 0:00:04]} 30. Kxe2 {[%emt 0:01:41]} Rxh5 {[%emt 0:00:04] KR-KR} 31. Kd3 {[%emt 0:00:24]} Rh4 {[%emt 0:00:21]} 32. Rf2 {[%emt 0:00:03]} Rh1 {[%emt 0:00:03]} 33. a4 {[%emt 0:00:22]} Ke6 {[%emt 0:00:34] Strongly threatening ...Kd5.} 34. Rg2 {[%emt 0:00:07]} Kd5 {[%emt 0:00:43] [#] ...Rd1+ is the strong threat.} 35. Rg8 {[%emt 0:00:06]} (35. Rg7 $11 {remains equal.}) 35... Rh3+ $17 {[%emt 0:00:05]} 36. Kc2 {[%emt 0:00:07]} Kxd4 {[%emt 0:00:15]} 37. Rf8 {[%emt 0:00:04]} Rh2+ {[%emt 0:00:07]} 38. Kb1 {[%emt 0:00:10]} (38. Kd1 $17) 38... Kc3 $19 {[%emt 0:00:43]} 39. Rxf7 {[%emt 0:00:05]} Rh1+ $2 {[%emt 0:00:06]} ({Not} 39... Kxb3 40. Rxb7+ Kc3 41. Rb6 $11 (41. e6 Re2 $11)) (39... Rb2+ $19 40. Kc1 Rf2 (40... Rxb3 41. Rxf5 Ra3 42. Kb1 $11)) 40. Ka2 $11 {[%emt 0:00:03] The position is equal.} Rh2+ {[%emt 0:00:03]} 41. Ka3 {[%emt 0:00:05]} Rh1 {[%emt 0:00:03]} 42. Ka2 {[%emt 0:00:04] Prevents Ra1+.} Rh2+ {[%emt 0:00:03]} 43. Ka3 {[%emt 0:00:17]} Rh1 {[%emt 0:00:02]} 44. Ka2 $1 {[%emt 0:00:03] Against Ra1+.   Weighted Error Value: White=0.31/Black=0.18 (very precise) .  Loses game:     	White=1     	---        Missed win:     	---       	Black=2      Mistake:       	White=2     	---        Inaccurate:     	White=2     	Black=1      OK:         	White=12    	Black=21     Best:        	White=2     	Black=2      Strong:       	White=1     	---} 1/2-1/2